bitfinex-derivatives/quotes_ETHF0:USTF0_20220106
["timestamp","ask_amount","ask_price","bid_price","bid_amount"]
[1641472349757,1.5,3327.7,3327.2,1.0]
[1641472349959,0.397182,3327.6,3327.2,1.0]
[1641472350758,0.1699717,3327.5,3327.3,0.11635609]
[1641472350958,0.6299537,3327.5,3327.3,0.11635609]
[1641472351158,0.397182,3327.4,3327.3,0.11635609]
[1641472351361,2.5719437,3327.4,3327.3,0.11635609]
[1641472352361,1.5719437,3327.4,3327.3,0.11635609]
[1641472357368,0.1699717,3327.4,3327.3,0.11635609]
[1641472359272,2.2852717,3327.4,3327.3,5.609e-05]
[1641472359474,5.79223535,3327.4,3326.5,2.00479]
[1641472359674,1.5,3327.2,3326.5,2.00479]
[1641472360272,3.50696365,3327.4,3326.5,2.00479]
[1641472360475,0.16999586,3327.1,3326.6,0.10534813]
[1641472361074,0.16999586,3327.3,3326.6,0.10534813]
[1641472361474,2.00479,3327.0,3326.6,0.10534813]
[1641472361675,0.384472,3326.9,3326.6,0.10534813]
[1641472361874,0.459982,3326.8,3326.6,0.10534813]
[1641472362073,0.62997786,3326.8,3326.6,0.10534813]
[1641472362474,0.16999586,3326.7,3326.6,0.10534813]
[1641472363975,0.459982,3326.8,3326.6,0.10534813]
[1641472364178,0.17000259,3326.7,3326.6,0.10534813]
[1641472366883,0.17000259,3326.7,3326.2,0.10534813]
[1641472367084,0.17000259,3326.7,3326.1,2.00479]
[1641472367284,0.384472,3326.9,3326.1,2.00479]
[1641472367488,0.384472,3326.9,3326.2,0.397182]
[1641472368286,0.384472,3326.9,3326.3,0.08328165]
[1641472369290,0.384472,3326.9,3326.3,0.48046365]
[1641472369888,2.00479,3327.0,3326.4,0.08328165]
[1641472370092,2.72836994,3327.4,3326.5,0.397182]
[1641472370291,2.72836994,3327.4,3326.5,1.088882]
[1641472370492,0.72357994,3327.4,3326.8,1.5]
[1641472370692,0.72357994,3327.4,3327.0,1.5]
[1641472371392,0.72357994,3327.4,3327.1,0.48046365]
[1641472371594,0.96563907,3327.6,3327.1,2.48525365]
[1641472371795,2.00479,3327.8,3327.2,0.08328165]
[1641472371994,0.72357994,3328.0,3327.3,0.397182]
[1641472372393,0.16994865,3327.9,3327.4,0.08328165]
[1641472372993,0.16994865,3327.9,3327.4,0.48046365]
[1641472373294,0.16994865,3327.9,3327.4,0.397182]
[1641472373596,0.16994865,3327.9,3327.5,2.08807165]
[1641472373993,0.384472,3327.8,3327.5,2.08807165]
[1641472374193,0.459982,3327.7,3327.6,0.08328165]
[1641472374399,0.62993065,3327.7,3327.6,0.08328165]
[1641472376096,0.16994865,3327.7,3327.6,0.08328165]
[1641472376498,0.16994865,3327.7,3327.5,0.08328165]
[1641472376697,0.16994865,3327.7,3327.4,0.397182]
[1641472376698,0.16994865,3327.7,3327.6,0.08328165]
[1641472376898,0.62993065,3327.7,3327.6,0.08328165]
[1641472377097,1.10805194,3327.9,3327.6,0.08328165]
[1641472377098,0.16994865,3327.8,3327.6,0.08328165]
[1641472377298,0.16994865,3327.7,3327.5,0.08328165]
[1641472377500,0.16994865,3327.7,3327.4,0.397182]
[1641472377898,0.459982,3327.6,3327.4,0.397182]
[1641472378099,0.16994865,3327.8,3327.4,0.397182]
[1641472378302,0.384472,3327.9,3327.4,0.397182]
[1641472378503,0.1699498,3327.7,3327.5,1.5]
[1641472378703,0.72357994,3328.0,3327.6,0.397182]
[1641472379099,0.72357994,3328.0,3327.8,1.5]
[1641472379300,0.72357994,3328.0,3327.9,0.397182]
[1641472379502,0.96563907,3328.2,3327.9,0.397182]
[1641472379503,0.96563907,3328.2,3327.9,1.218382]
[1641472379702,0.72357994,3328.4,3327.9,3.223172]
[1641472380302,0.72357994,3328.4,3328.0,1.50107552]
[1641472380502,1.10805194,3328.4,3328.1,0.397182]
[1641472380702,1.5,3328.2,3327.7,0.7631]
[1641472380904,1.5,3328.2,3326.7,35.17422776]
[1641472380905,1.50190742,3328.0,3326.6,31.2266]
[1641472381106,1.67182385,3328.3,3326.6,31.2266]
[1641472381107,1.5,3327.9,3326.9,0.7567691]
[1641472381404,0.16991643,3328.1,3326.9,0.7567691]
[1641472381603,2.00479,3327.7,3326.9,0.7567691]
[1641472382105,0.16991643,3327.6,3326.9,0.7567691]
[1641472382304,1.89040643,3327.7,3326.6,2.00479]
[1641472382504,0.384472,3327.6,3326.6,2.00479]
[1641472383504,0.1699594,3327.5,3326.6,2.00479]
[1641472384505,1.5,3327.4,3326.6,2.00479]
[1641472384706,0.459982,3327.3,3326.6,2.00479]
[1641472385105,0.459982,3327.3,3326.6,2.401972]
[1641472387311,0.384472,3327.6,3326.6,2.401972]
[1641472387508,0.384472,3327.6,3326.6,3.082572]
[1641472388910,0.16996023,3327.5,3326.6,3.082572]
[1641472389108,0.16996023,3327.5,3326.6,2.68539]
[1641472389310,0.16996023,3327.5,3326.6,2.00479]
[1641472391213,0.47792944,3327.4,3326.6,2.00479]
[1641472391413,0.47792944,3327.4,3326.7,0.397182]
[1641472391612,0.47792944,3327.4,3326.7,1.168782]
[1641472392313,0.96563907,3327.6,3327.4,0.52207056]
[1641472392515,0.153218,3327.5,3327.4,0.52207056]
[1641472394015,1.12248852,3327.5,3327.4,0.52207056]
[1641472394417,1.12248852,3327.5,3326.6,2.00479]
[1641472395217,0.16997052,3327.4,3326.6,2.00479]
[1641472395416,1.66997052,3327.4,3326.6,2.00479]
[1641472395617,2.00479,3327.3,3326.6,2.00479]
[1641472395817,2.17476052,3327.3,3326.6,2.00479]
[1641472396017,2.00479,3327.3,3326.6,2.00479]
[1641472396722,0.16998361,3327.2,3326.6,2.00479]
[1641472397222,1.5,3326.7,3326.0,1.01270241]
[1641472397525,0.5,3326.3,3326.0,1.01270241]
[1641472397722,4.00958,3326.1,3325.9,1.01270241]
[1641472397921,4.50958,3326.1,3325.9,2.41e-06]
[1641472398121,1.50290963,3326.0,3325.4,1.52042139]
[1641472398321,0.5,3325.8,3325.4,1.52042139]
[1641472398523,0.5,3325.6,3325.4,1.52042139]
[1641472398721,0.153218,3325.5,3325.4,1.52042139]
[1641472398922,0.5,3325.6,3325.4,1.52042139]
[1641472399122,1.50290963,3326.0,3325.4,1.52042139]
[1641472399424,0.384472,3325.9,3325.4,1.52042139]
[1641472399621,2.00479,3325.5,3325.4,1.52042139]
[1641472399824,2.158008,3325.5,3324.5,1.98072139]
[1641472400023,2.158008,3325.5,3324.5,1.52042139]
[1641472400024,2.00479,3325.5,3324.5,1.52042139]
[1641472400226,0.384472,3325.9,3325.4,1.0]
[1641472400423,2.00479,3326.1,3325.5,0.397182]
[1641472400624,0.5,3326.0,3325.8,1.0]
[1641472400923,2.153218,3326.0,3325.5,1.397182]
[1641472401523,2.53769,3326.0,3325.5,1.397182]
[1641472401723,2.53769,3326.0,3325.5,3.401972]
[1641472402023,2.384472,3326.0,3325.5,3.401972]
[1641472402423,2.147572,3326.0,3325.5,2.401972]
[1641472402625,1.7631,3326.0,3325.6,1.0]
[1641472403024,1.7631,3326.0,3325.9,1.0]
[1641472403227,1.20674427,3326.9,3325.9,2.959982]
[1641472403423,1.20674427,3326.9,3326.8,1.0]
[1641472403623,1.20674427,3326.9,3326.8,1.6925]
[1641472403825,1.20674427,3327.1,3326.8,1.6925]
[1641472404023,1.20674427,3327.1,3327.0,1.0]
[1641472404224,1.20674427,3327.1,3327.0,1.459982]
[1641472405127,1.35996227,3327.1,3327.0,1.0]
[1641472405623,0.153218,3327.1,3327.0,1.0]
[1641472405824,0.153218,3327.1,3326.8,0.6925]
[1641472406025,0.384472,3327.2,3326.8,0.6925]
[1641472406225,0.384472,3327.2,3327.0,1.0]
[1641472407124,0.384472,3327.2,3327.0,1.459982]
[1641472407324,2.00479,3327.3,3326.8,1.089682]
[1641472407526,2.00479,3327.3,3327.1,1.0]
[1641472407727,2.00479,3327.3,3327.1,0.397182]
[1641472407926,2.74448216,3327.3,3327.2,1.10079396]
[1641472408225,2.89770016,3327.3,3327.2,1.10079396]
[1641472409325,2.89770016,3327.3,3327.2,2.10079396]
[1641472409727,2.89770016,3327.3,3327.2,1.10079396]
[1641472410832,2.158008,3327.3,3327.2,1.10079396]
[1641472411230,2.158008,3327.3,3327.2,9.396e-05]
[1641472411428,2.158008,3327.3,3326.5,0.76166072]
[1641472411628,2.158008,3327.3,3326.4,0.76166072]
[1641472411629,0.5,3327.2,3326.4,0.76166072]
[1641472411828,1.50242416,3326.9,3326.6,0.10080264]
[1641472412030,0.153218,3326.8,3326.4,0.76166072]
[1641472412229,0.53769,3326.8,3326.4,0.76166072]
[1641472412629,1.31019,3326.8,3326.5,0.08972855]
[1641472412829,1.31019,3326.8,3326.4,0.76166072]
[1641472413032,12.91,3326.4,3325.2,2.53553594]
[1641472413230,0.5,3326.0,3325.2,2.53553594]
[1641472413431,1.1159,3326.0,3325.8,1.01581719]
[1641472413729,0.153218,3325.9,3325.8,1.01581719]
[1641472413929,4.162798,3325.9,3325.8,1.01581719]
[1641472414128,4.54727,3325.9,3325.8,1.01581719]
[1641472414330,3.54727,3325.9,3325.5,0.51920577]
[1641472414730,4.02541401,3325.9,3325.5,0.51920577]
[1641472414930,4.02541401,3325.9,3323.9,1.35200601]
[1641472414931,4.02541401,3325.9,3324.2,1.5]
[1641472415130,4.02541401,3325.9,3324.5,1.5]
[1641472415331,4.02541401,3325.9,3325.6,1.0]
[1641472415536,4.02541401,3325.9,3325.6,1.7269]
[1641472415933,3.54727,3325.9,3325.6,0.7269]
[1641472416534,13.41,3325.8,3325.6,0.7269]
[1641472416733,3.54727,3325.9,3324.6,0.15137545]
[1641472417433,3.54727,3325.9,3324.4,1.0]
[1641472417633,3.54727,3325.9,3324.6,1.5]
[1641472417833,0.384472,3325.9,3325.8,1.0]
[1641472418140,0.384472,3325.9,3325.8,1.8575]
[1641472418734,0.384472,3325.9,3325.8,0.8575]
[1641472418935,1.50297514,3326.5,3325.8,1.8575]
[1641472419137,0.384472,3326.2,3325.8,0.8575]
[1641472419336,0.384472,3326.2,3325.9,1.0]
[1641472419937,4.00958,3326.0,3325.9,1.0]
[1641472424541,3.00958,3326.0,3325.9,1.0]
[1641472425341,3.00958,3326.0,3325.9,1.459982]
[1641472425742,3.00958,3326.0,3325.9,1.0]
[1641472428948,3.00958,3326.0,3325.5,1.0]
[1641472429349,1.00958,3326.0,3325.6,0.07988953]
[1641472429551,1.00958,3326.0,3325.9,1.0]
[1641472429752,1.00958,3326.0,3325.9,0.994282]
[1641472429951,1.00958,3326.0,3325.9,0.5343]
[1641472430151,3.01437,3326.0,3325.9,0.61418953]
[1641472432757,26.42436999,3326.0,3324.3,3.52678498]
[1641472432959,2.00365313,3324.4,3323.8,2.5366583]
[1641472433156,1.50460107,3323.9,3323.3,3.48790517]
[1641472433358,0.884472,3323.8,3323.3,1.63090517]
[1641472433559,0.384472,3323.8,3323.3,1.63090517]
[1641472433761,13.41,3323.6,3323.3,1.62890517]
[1641472433960,13.6308,3323.6,3323.3,1.62890517]
[1641472434160,0.17019348,3323.5,3323.4,0.0712624]
[1641472434360,0.67019348,3323.5,3323.4,0.0712624]
[1641472434661,1.40797862,3323.5,3323.4,0.0269624]
[1641472434859,1.40797862,3323.5,3321.4,2.00479]
[1641472434860,15.70390274,3323.5,3321.4,2.00479]
[1641472435158,0.5,3322.7,3321.4,2.00479]
[1641472435359,1.50457843,3322.1,3321.4,2.00479]
[1641472435559,0.7382,3322.7,3321.4,2.00479]
[1641472435560,0.384472,3322.0,3321.4,2.00479]
[1641472435760,0.5,3322.5,3321.3,1.90416974]
[1641472436161,2.00479,3321.5,3320.7,2.00479]
[1641472436362,2.00479,3321.5,3321.4,0.06345646]
[1641472436962,2.00479,3321.5,3320.9,0.06345646]
[1641472437160,2.76569,3321.5,3320.9,0.06345646]
[1641472437561,3.150162,3321.5,3320.9,0.06345646]
[1641472437964,1.50497243,3321.2,3320.9,0.06345646]
[1641472438161,4.65513443,3321.5,3320.1,1.0]
[1641472438162,2.00479,3321.0,3320.8,0.06345646]
[1641472438361,2.00479,3321.0,3320.1,1.0]
[1641472438966,2.00479,3321.0,3320.0,2.00479]
[1641472439162,2.00479,3321.0,3320.3,1.0]
[1641472439363,2.00479,3321.0,3320.1,1.0]
[1641472439962,2.50479,3321.0,3318.7,64.7029]
[1641472440162,2.50479,3321.0,3318.9,1.0]
[1641472440163,2.00479,3319.5,3318.9,1.0]
[1641472440364,2.00479,3319.5,3319.2,1.0]
[1641472440562,2.70699,3319.5,3319.2,1.0]
[1641472440763,0.384472,3319.4,3319.2,1.0]
[1641472440963,0.384472,3319.4,3318.7,2.00479]
[1641472441463,1.50588122,3319.2,3318.9,1.0]
[1641472442163,1.50588122,3319.2,3318.7,2.00479]
[1641472442364,1.50588122,3319.2,3319.1,1.0]
[1641472442764,1.50588122,3319.2,3318.7,2.00479]
[1641472443364,1.50588122,3319.2,3318.4,2.00479]
[1641472444168,2.00479,3319.0,3318.4,2.00479]
[1641472444767,2.50479,3319.0,3318.4,2.00479]
[1641472444968,0.5,3318.8,3318.4,2.00479]
[1641472445167,0.5,3318.8,3317.8,2.00479]
[1641472445168,10.49999999,3318.5,3316.8,6.467]
[1641472445371,0.5,3317.3,3316.4,1.0]
[1641472445567,1.1858,3317.3,3317.0,1.0]
[1641472445770,0.5,3317.2,3317.0,1.0]
[1641472445969,1.50692507,3317.1,3317.0,1.0]
[1641472446168,3.51171507,3317.1,3317.0,1.0]
[1641472446969,3.51171507,3317.1,3316.7,0.397182]
[1641472447169,3.89618707,3317.1,3316.2,1.0]
[1641472447469,3.89618707,3317.1,3316.0,1.5]
[1641472447669,3.89618707,3317.1,3317.0,1.0]
[1641472448070,3.51171507,3317.1,3317.0,1.0]
[1641472448472,3.51171507,3317.1,3316.8,1.0]
[1641472448871,3.51171507,3317.1,3316.2,2.00479]
[1641472449074,2.00479,3317.1,3316.5,1.0]
[1641472449275,0.384472,3317.0,3316.5,1.0]
[1641472449474,0.384472,3317.0,3316.2,2.00479]
[1641472449674,0.384472,3317.0,3316.3,1.0]
[1641472450175,2.00479,3316.4,3316.1,1.0]
[1641472450875,2.00479,3316.4,3316.3,1.0]
[1641472451075,2.00479,3316.4,3316.3,1.6133]
[1641472451473,2.00479,3316.4,3316.3,3.1133]
[1641472451677,3.51164241,3317.1,3316.3,3.573282]
[1641472451876,2.00479,3317.1,3317.0,1.0]
[1641472452074,2.00479,3317.1,3317.0,1.6491]
[1641472453474,2.00479,3317.1,3317.0,1.71271632]
[1641472453675,1.50647559,3317.9,3317.0,1.71271632]
[1641472453875,1.50647559,3317.9,3317.1,0.397182]
[1641472454077,0.384472,3317.8,3317.1,0.46079832]
[1641472454275,0.384472,3317.8,3317.3,2.00479]
[1641472454675,2.00479,3318.1,3317.7,2.5]
[1641472454875,1.5063417,3318.2,3317.7,2.5]
[1641472454876,1.5063417,3318.2,3317.9,1.5]
[1641472455075,1.50593565,3319.1,3318.1,2.5]
[1641472455277,1.50570209,3319.6,3319.0,1.0]
[1641472455475,1.50570209,3319.6,3319.0,1.8792]
[1641472455679,1.50570209,3319.6,3319.1,0.06361632]
[1641472455875,3.50589029,3319.2,3317.7,0.23371632]
[1641472456276,0.5,3318.6,3317.8,1.0]
[1641472456475,1.50626229,3318.4,3317.3,2.00479]
[1641472457277,1.50626229,3318.4,3317.4,0.06294399]
[1641472457676,1.50626229,3318.4,3318.2,1.0]
[1641472458078,1.50626229,3318.4,3318.3,0.06294399]
[1641472458278,3.51105229,3318.4,3318.3,0.06294399]
[1641472458477,3.51105229,3318.4,3317.3,2.00479]
[1641472458478,3.51105229,3318.4,3318.2,1.0]
[1641472458678,3.51105229,3318.4,3317.4,0.06294399]
[1641472458879,3.51105229,3318.4,3318.3,0.06294399]
[1641472459079,3.51105229,3318.4,3318.3,0.52292599]
[1641472459279,3.51105229,3318.4,3318.0,1.0]
[1641472459482,2.00479,3318.4,3318.3,0.06294399]
[1641472459781,2.00479,3318.4,3318.1,0.06294399]
[1641472459782,3.51105682,3318.4,3318.1,0.06294399]
[1641472459980,3.51105682,3318.4,3318.3,0.06294399]
[1641472460183,3.51105682,3318.4,3318.3,1.7697]
[1641472460380,3.51105682,3318.4,3318.3,0.7697]
[1641472460581,2.00479,3318.4,3318.3,0.83264399]
[1641472460982,3.51105682,3318.4,3318.3,0.83264399]
[1641472461485,4.01105682,3318.4,3318.3,0.83264399]
[1641472461883,4.01105682,3318.4,3318.3,1.83264399]
[1641472462682,4.01105682,3318.4,3318.3,2.29262599]
[1641472462881,4.01105682,3318.4,3318.3,1.83264399]
[1641472463383,4.01105682,3318.4,3318.3,2.29262599]
[1641472463983,4.01105682,3318.4,3318.3,1.83264399]
[1641472464184,2.50479,3318.4,3318.3,1.83264399]
[1641472464383,2.50479,3318.4,3318.3,2.29262599]
[1641472464583,2.50479,3318.4,3318.3,0.7697]
[1641472464985,2.50479,3318.4,3318.3,1.82627825]
[1641472465384,2.50479,3318.4,3318.3,0.82627825]
[1641472465585,2.50479,3318.4,3318.3,1.28626025]
[1641472465786,2.50479,3318.4,3318.3,1.82627825]
[1641472466384,2.50479,3318.4,3318.3,0.82627825]
[1641472466585,2.50479,3318.4,3318.3,1.82627825]
[1641472466987,2.50479,3318.4,3318.3,0.82627825]
[1641472467388,2.50479,3318.4,3318.3,2.28626025]
[1641472467590,0.43917892,3318.2,3317.3,4.29389]
[1641472468391,0.43917892,3318.2,3318.1,1.5]
[1641472468593,7.892e-05,3318.2,3318.1,0.742718]
[1641472468792,0.5,3318.4,3318.1,0.742718]
[1641472468992,2.00479,3318.9,3318.3,1.5]
[1641472469392,2.00479,3318.9,3318.4,0.050345]
[1641472469593,2.00479,3318.9,3318.5,0.397182]
[1641472469993,1.50549355,3320.1,3318.6,0.050345]
[1641472470203,33.4115,3320.5,3318.7,0.397182]
[1641472470403,2.00479,3319.8,3319.0,2.00479]
[1641472470602,3.51040595,3319.8,3319.1,0.153218]
[1641472470802,3.51040595,3319.8,3319.1,0.600745]
[1641472471003,2.959982,3319.2,3319.1,0.447527]
[1641472471202,2.5,3319.2,3319.1,0.447527]
[1641472471402,2.5,3319.2,3319.1,0.600745]
[1641472471803,2.5,3319.2,3319.1,0.050345]
[1641472472405,1.5,3319.2,3319.1,0.203563]
[1641472472605,1.5,3319.2,3319.1,1.069063]
[1641472474408,1.5,3319.2,3319.1,0.7576]
[1641472475414,1.50502226,3321.1,3319.1,4.15980426]
[1641472475611,1.50502226,3321.1,3320.6,1.5]
[1641472475812,0.73778514,3321.7,3320.6,0.6489]
[1641472476014,0.73778514,3321.7,3320.6,1.046082]
[1641472476212,0.73778514,3321.7,3320.7,0.04474144]
[1641472476213,0.17028585,3321.6,3320.7,0.04474144]
[1641472476415,2.00479,3321.0,3320.7,0.04474144]
[1641472476615,0.459982,3320.9,3320.7,0.04474144]
[1641472477217,1.50524654,3320.8,3320.7,0.04474144]
[1641472477415,1.50524654,3320.8,3319.9,2.00479]
[1641472477817,14.91479,3321.0,3319.9,2.00479]
[1641472478019,16.41479,3321.0,3319.9,2.00479]
[1641472478218,14.91479,3321.0,3319.9,2.00479]
[1641472478419,2.00479,3320.5,3319.9,2.00479]
[1641472478618,0.384472,3320.4,3320.0,0.03984012]
[1641472478819,2.00479,3320.5,3320.0,1.18182212]
[1641472479219,2.00479,3320.5,3320.1,0.03984012]
[1641472480623,2.00479,3320.5,3320.2,0.397182]
[1641472481022,2.00479,3320.5,3320.3,0.03984012]
[1641472481423,2.00479,3320.5,3320.4,0.397182]
[1641472481623,2.00479,3320.5,3320.0,0.7448]
[1641472482024,2.00479,3320.5,3320.1,0.43701001]
[1641472482223,2.00479,3321.0,3320.4,1.5]
[1641472482424,1.50479805,3321.6,3320.9,1.5]
[1641472482425,2.00479,3321.4,3320.9,1.5]
[1641472482623,2.00479,3321.4,3321.1,1.5]
[1641472482825,2.00479,3321.4,3320.9,0.6563]
[1641472483024,2.00479,3321.4,3321.2,0.03940146]
[1641472483627,2.00479,3321.4,3321.3,0.397182]
[1641472483926,1.50464182,3322.0,3321.3,1.897182]
[1641472484128,2.24220513,3322.5,3321.9,1.5]
[1641472484329,0.73778514,3322.5,3322.4,2.00479]
[1641472484528,0.73578514,3322.5,3322.4,2.00479]
[1641472484730,0.73578514,3322.5,3322.4,3.54419146]
[1641472484929,0.96929228,3322.8,3322.4,3.94137346]
[1641472485132,0.96929228,3322.8,3322.4,2.44137346]
[1641472485331,0.96929228,3322.9,3322.4,2.44137346]
[1641472485532,0.397182,3322.8,3322.5,0.03940146]
[1641472485735,0.459982,3322.7,3322.5,0.03940146]
[1641472485935,0.63021874,3322.7,3322.5,0.03940146]
[1641472486232,0.397182,3322.6,3322.5,0.03940146]
[1641472486434,0.56741874,3322.6,3322.5,0.03940146]
[1641472486634,0.56741874,3322.6,3322.3,0.03940146]
[1641472486833,0.56741874,3322.6,3322.5,0.03940146]
[1641472487033,0.17023674,3322.5,3322.4,0.03940146]
[1641472487433,0.397182,3322.6,3322.3,0.03940146]
[1641472487634,0.459982,3322.5,3322.3,0.03940146]
[1641472487934,0.397182,3322.4,3321.6,2.00479]
[1641472488133,2.97559769,3322.0,3321.6,2.00479]
[1641472488335,14.91479,3322.7,3321.6,2.00479]
[1641472488336,0.397182,3322.1,3321.6,2.401972]
[1641472488534,2.00479,3322.2,3321.6,2.401972]
[1641472488733,0.1702571,3322.0,3321.7,0.05412616]
[1641472488933,0.1702571,3322.1,3321.8,0.397182]
[1641472489134,2.00479,3322.2,3321.6,2.00479]
[1641472489333,0.17025528,3322.0,3321.2,0.32922099]
[1641472489934,2.00479,3322.7,3321.2,0.32922099]
[1641472490134,2.00479,3322.7,3321.0,0.29126072]
[1641472490435,2.00479,3322.7,3321.7,2.00479]
[1641472490737,0.1702532,3322.6,3321.7,2.00479]
[1641472492437,0.1702532,3322.6,3322.1,1.0]
[1641472492637,0.9519072,3322.6,3322.1,1.0]
[1641472492838,1.5,3322.5,3322.1,1.0]
[1641472493038,0.397182,3322.4,3321.7,2.00479]
[1641472493238,0.397182,3322.4,3321.0,0.29126072]
[1641472493440,0.5674352,3322.4,3321.0,0.29126072]
[1641472493638,0.1702532,3322.3,3321.0,0.29126072]
[1641472493837,1.50476182,3321.8,3321.0,0.29126072]
[1641472494237,1.13954548,3322.3,3321.0,0.29126072]
[1641472494438,2.1750432,3321.7,3321.0,0.29126072]
[1641472494638,2.00479,3321.7,3321.0,0.29126072]
[1641472494838,0.1702532,3321.6,3321.0,0.29126072]
[1641472495040,0.96929228,3322.4,3321.0,1.79126072]
[1641472495240,0.96929228,3322.4,3321.5,1.5]
[1641472495439,0.96929228,3322.4,3321.9,1.5]
[1641472495639,0.96929228,3322.4,3321.9,0.6978]
[1641472496142,1.75094628,3322.4,3321.9,0.6978]
[1641472496340,0.781654,3322.4,3321.9,0.6978]
[1641472496541,2.786444,3322.4,3321.9,0.6978]
[1641472497440,2.50479,3322.4,3321.9,0.6978]
[1641472499441,0.5,3322.4,3321.9,0.6978]
[1641472500343,0.5,3322.4,3321.7,2.00479]
[1641472500344,0.884472,3322.4,3321.7,2.00479]
[1641472500543,0.884472,3322.4,3322.2,2.00479]
[1641472500742,0.459982,3322.3,3322.2,2.00479]
[1641472501145,0.857164,3322.3,3322.2,2.00479]
[1641472501542,1.02741793,3322.3,3322.2,2.00479]
[1641472503442,1.02741793,3322.3,3321.7,2.00479]
[1641472503948,0.857164,3322.3,3321.7,2.00479]
[1641472504142,0.857164,3322.3,3321.8,1.5]
[1641472504543,0.397182,3322.3,3321.9,0.06690573]
[1641472505143,0.397182,3322.3,3321.8,0.06690573]
[1641472505443,0.397182,3322.3,3322.0,0.06690573]
[1641472505642,0.459982,3322.2,3321.9,0.06690573]
[1641472505943,0.459982,3322.2,3322.1,0.06690573]
[1641472506143,0.459982,3322.2,3322.0,0.06690573]
[1641472506345,0.459982,3322.2,3322.1,0.06690573]
[1641472506743,0.459982,3322.2,3321.8,0.06690573]
[1641472507042,0.857164,3322.2,3321.8,1.56690573]
[1641472507243,0.5,3322.3,3321.8,1.56690573]
[1641472507444,0.5,3322.3,3321.8,2.28160573]
[1641472507745,0.5,3322.3,3322.0,1.5]
[1641472507945,1.0,3322.3,3322.0,1.5]
[1641472508144,1.0,3322.3,3322.1,0.06690573]
[1641472508344,1.0,3322.3,3322.0,1.43855704]
[1641472508546,0.73259331,3322.7,3322.2,3.44334704]
[1641472508744,0.96929228,3323.0,3322.6,1.43855704]
[1641472508947,1.82751919,3323.7,3322.9,0.93855704]
[1641472509144,1.82751919,3323.7,3322.6,2.09857626]
[1641472509145,1.82751919,3323.7,3323.1,0.93855704]
[1641472509347,1.23247169,3323.7,3323.1,0.93855704]
[1641472509545,0.9771204,3323.5,3323.3,0.93855704]
[1641472509746,0.9771204,3323.5,3323.3,0.614]
[1641472509945,0.9771204,3323.5,3323.3,1.55255704]
[1641472510147,0.9771204,3323.5,3323.4,0.05949053]
[1641472510646,1.23247169,3323.7,3323.4,4.06907053]
[1641472511047,1.45943213,3324.0,3323.5,0.05949053]
[1641472511247,3.23726169,3324.5,3323.5,0.05949053]
[1641472511454,1.23247169,3324.5,3324.4,0.93855704]
[1641472511647,1.23247169,3324.5,3324.4,1.70925704]
[1641472511847,1.23247169,3324.5,3324.4,1.76874757]
[1641472512448,1.22335415,3324.9,3324.4,1.76874757]
[1641472512648,1.22335415,3324.9,3324.8,0.93855704]
[1641472512847,1.22335415,3324.9,3324.7,2.00479]
[1641472513047,1.22335415,3324.9,3324.8,0.05949053]
[1641472513448,1.22335415,3324.9,3324.8,0.99804757]
[1641472513953,5.415e-05,3324.9,3324.8,0.99804757]
[1641472514249,1.83503122,3325.4,3324.8,0.99804757]
[1641472514449,1.83503122,3325.4,3325.3,0.93855704]
[1641472514650,2.43669225,3325.6,3325.3,2.71129]
[1641472515151,0.63803073,3326.2,3325.3,2.77078053]
[1641472515351,0.63803073,3326.2,3325.4,0.05949053]
[1641472516051,0.56144296,3325.9,3325.4,0.05949053]
[1641472516351,0.63803073,3326.2,3325.4,0.05949053]
[1641472516553,0.94591496,3326.1,3325.7,2.00479]
[1641472516751,0.56144296,3325.8,3325.7,2.00479]
[1641472516951,1.02142496,3325.8,3325.7,2.00479]
[1641472517153,0.56144296,3325.8,3325.7,2.00479]
[1641472517553,0.56144296,3325.8,3325.3,1.28830159]
[1641472517752,0.56144296,3325.4,3325.3,1.28830159]
[1641472518154,0.56144296,3325.6,3324.6,30.71726665]
[1641472518453,0.56144296,3325.3,3324.7,1.5026296]
[1641472518753,0.56144296,3325.3,3324.9,2.00479]
[1641472519355,2.00479,3325.6,3324.9,2.00479]
[1641472519955,0.56144296,3325.7,3325.0,1.50248511]
[1641472520257,0.98223191,3326.1,3325.0,1.50248511]
[1641472520457,0.56144296,3325.2,3325.0,1.50248511]
[1641472520855,0.56144296,3325.5,3325.0,1.50248511]
[1641472521255,2.00479,3325.9,3325.0,1.50248511]
[1641472521256,0.56144296,3325.2,3325.0,1.50248511]
[1641472521455,2.56623296,3325.9,3325.0,1.50248511]
[1641472521656,2.56623296,3325.9,3325.0,2.32968511]
[1641472521855,0.56144296,3325.8,3325.0,2.32968511]
[1641472522255,2.00479,3325.9,3325.0,2.32968511]
[1641472522455,0.56144296,3325.5,3325.0,2.32968511]
[1641472522656,0.56144296,3325.5,3325.3,2.00479]
[1641472522855,2.56623296,3325.9,3325.3,2.00479]
[1641472523055,2.00479,3325.9,3325.3,2.00479]
[1641472523856,1.54367487,3326.4,3325.5,4.0]
[1641472524259,0.98223191,3326.4,3325.6,4.810655]
[1641472524457,0.98223191,3326.4,3325.7,1.50214205]
[1641472524657,0.98223191,3326.5,3325.7,2.12268444]
[1641472524857,0.98223191,3326.5,3325.7,0.6565]
[1641472525257,0.56144296,3326.0,3325.7,0.6565]
[1641472526060,0.56144296,3326.0,3325.5,2.4407871]
[1641472526469,0.56144296,3326.0,3325.5,1.50223006]
[1641472526668,0.56144296,3326.0,3325.6,4.810944]
[1641472528072,0.56144296,3326.0,3325.3,2.94334704]
[1641472528271,0.17005711,3325.9,3325.5,4.0]
[1641472528471,2.00479,3326.3,3325.5,5.50223006]
[1641472528671,2.00479,3326.3,3325.6,4.811017]
[1641472529673,2.00479,3326.8,3326.0,4.0]
[1641472529872,0.73733586,3326.9,3326.7,4.0]
[1641472530073,0.73733586,3326.9,3326.7,6.2328]
[1641472531073,0.73733586,3326.9,3326.8,4.809426]
[1641472531273,0.73733586,3326.9,3326.4,3.50479]
[1641472531475,2.98702191,3327.2,3326.4,3.50479]
[1641472531678,2.00479,3327.2,3326.7,4.0]